Cogmind - Beta 14 @@@ ROGUE MODE // 2024.11.20 @ 20:46:00 Player: skye Result: Destroyed by G-34 Mercenary with Small Laser Performance ------------- Evolutions (0) 0 Regions Visited (4) 800 Robots Destroyed (23) 115 Value Destroyed (458) 458 Prototype IDs (23) 460 Alien Tech Used (0) 0 Bonus (353) 353 TOTAL SCORE: 2186 Bonus ------- Follower Combat Kills 53 Aligned with FarCom 300 Cogmind --------- Core Integrity 0/250 Matter 215/300 Energy 100/100 System Corruption 6% Temperature Cool (6) Movement Treading (160) Location -9/Mines Parts ------- > --- POWER (1) -------- (None) > --- PROPULSION (2) --- Light Treads Light Treads > --- UTILITY (2) ------ Medium Storage Unit Structural Scanner > --- WEAPON (2) ------- Light Assault Rifle Light Assault Rifle > --- INVENTORY (10) --- Light Ion Engine Light Treads Wheel Guided Plasma Cannon Light Cannon Grenade Launcher Datajack Peak State ------------ > --- POWER ------------ Ion Engine > --- PROPULSION ------- Light Treads Light Treads > --- UTILITY ---------- Medium Storage Unit Light Armor Plating > --- WEAPON ----------- Assault Rifle Light Cannon > --- INVENTORY -------- Light Ion Engine Light Ion Engine Light Ion Engine Wheel Structural Scanner Propulsion Shielding EM Pulse Gun Grenade Launcher Datajack Mining Laser [Rating: 8] Favorites ----------- Power Ion Engine Engine Ion Engine Propulsion Light Treads Treads Light Treads Leg Aluminum Leg Utility Medium Storage Unit Device Structural Scanner Storage Medium Storage Unit Processor Signal Interpreter Protection Light Armor Plating Weapon Assault Rifle Energy Gun EM Pulse Gun Ballistic Gun Assault Rifle Ballistic Cannon Light Cannon Launcher Grenade Launcher Special Weapon Mining Laser Build | -11 -10 -10 -10 -9 ------- Run | Yrd Mat Min Exi Min Slots Evolved . | . . . . . Power . | . . . . . Propulsion . | . . . . . Utility . | . . . . . Weapon . | . . . . . Parts Attached 18 | 2 6 2 . 8 Power 3 | . 1 . . 2 Engine 3 | . 1 . . 2 Core . | . . . . . Reactor . | . . . . . Propulsion 4 | 2 . 1 . 1 Treads 4 | 2 . 1 . 1 Leg . | . . . . . Wheel . | . . . . . Hover . | . . . . . Flight . | . . . . . Utility 5 | . 3 . . 2 Device 1 | . . . . 1 Storage 1 | . 1 . . . Processor 1 | . 1 . . . Hackware . | . . . . . Protection 2 | . 1 . . 1 Artifact . | . . . . . Weapon 6 | . 2 1 . 3 Energy Gun . | . . . . . Energy Cannon . | . . . . . Ballistic Gun 3 | . 1 . . 2 Ballistic Cannon 1 | . . 1 . . Launcher 1 | . 1 . . . Special Weapon 1 | . . . . 1 Impact Weapon . | . . . . . Slashing Weapon . | . . . . . Piercing Weapon . | . . . . . Special Melee Weapon . | . . . . . Unidentified Prototypes . | . . . . . Parts Lost 5 | . . . . 5 Power 2 | . . . . 2 Propulsion . | . . . . . Utility 2 | . . . . 2 Weapon 1 | . . . . 1 Highest Loss Streak 1 | . . . . 1 To Critical Strikes . | . . . . . Average Slot Usage (%) 95 | . 98 100 100 89 Engine 13 | . 14 14 14 13 Treads 28 | . 28 28 28 28 Storage 14 | . 14 14 14 14 Processor 2 | . 8 . . . Protection 8 | . 3 14 14 6 Energy Gun 1 | . 3 . . . Ballistic Gun 15 | . 14 14 14 17 Ballistic Cannon 6 | . . 12 14 5 Launcher 3 | . 10 1 . . Special Weapon 1 | . . . . 3 Peak Build Rating 8 | 6 7 8 8 8 Average Rating 7 | 5 6 7 8 7 On Entrance 7 | 6 6 7 8 8 Naked Turns . | . . . . . Heaviest Build 23 | 14 23 23 23 20 Greatest Support 40 | 40 40 40 40 40 Greatest Overweight (x) . | . . . . . Average Overweight (x) . | . . . . . Largest Inventory Capacity 10 | 8 10 10 10 10 Average Capacity 9 | 8 8 10 10 10 Most Carried 10 | 7 8 10 10 10 Average Carried 9 | 6 7 9 10 9 Final Capacity 10 | 8 10 10 10 10 Final Carried 10 | 6 8 10 10 7 Class Distribution -------------------- 100% | Mutant Dominant Class ---------------- Mutant | -10/Materials Mutant | -10/Mines Mutant | -10/Exiles Mutant | -9/Mines Resources | -11 -10 -10 -10 -9 ----------- Run | Yrd Mat Min Exi Min Matter Collected 560 | 200 130 57 . 173 Remotely . | . . . . . Salvage Created 435 | . 309 52 . 74 Parts 36 | . 23 6 . 7 Haulers Intercepted . | . . . . . Recyclers Shooed 1 | . 1 . . . Parts Field Recycled . | . . . . . Retrieved Matter . | . . . . . Parts Self-Destructed . | . . . . . Prevented . | . . . . . Kills | -11 -10 -10 -10 -9 ------- Run | Yrd Mat Min Exi Min Combat Hostiles Destroyed 22 | . 10 6 . 6 Guns 13 | . 5 3 . 5 Cannons 4 | . . 3 . 1 AOE 5 | . 5 . . . Classes Destroyed 6 | . 5 1 . . Worker 2 | . 2 . . . Operator 1 | . 1 . . . Watcher 1 | . 1 . . . Swarmer 12 | . 3 4 . 5 Grunt 7 | . 7 . . . Assembled 3 | . . 2 . 1 Best Kill Streak 5 | . 5 3 . 3 Combat Bots Only 3 | . 3 3 . 3 Max Kills in Single Turn 2 | . 2 1 . 1 Gunslinging . | . . . . . Exploded 2 | . 2 . . . Melee . | . . . . . Uniques/NPCs Destroyed . | . . . . . Combat | -11 -10 -10 -10 -9 -------- Run | Yrd Mat Min Exi Min Hostile Shots Fired 140 | . 44 36 . 60 Missed 28 | . 11 3 . 14 Damage Taken 1296 | . 441 314 . 541 Core 257 | . 117 52 . 88 Absorbed by Shields . | . . . . . Redirected to Shielding 22 | . . . . 22 Core Remaining (%) 100 | 100 . . . . Volleys Fired 80 | . 34 23 . 23 Largest 2 | . 2 2 . 2 Hottest 120 | . 60 55 . 120 Shots Fired 102 | . 42 27 . 33 Gun 80 | . 39 18 . 23 Cannon 15 | . . 9 . 6 Launcher 3 | . 3 . . . Special 4 | . . . . 4 Kinetic 87 | . 31 27 . 29 Thermal 4 | . . . . 4 Explosive 3 | . 3 . . . Electromagnetic 8 | . 8 . . . Robot Hit Streak 9 | . 9 8 . 4 Robot Miss Streak 4 | . 4 3 . 3 Penetration Max . | . . . . . Secondary Targets . | . . . . . Shots Hit Robots 59 | . 30 17 . 12 Core Hits 35 | . 20 6 . 9 Critical Kills . | . . . . . Critical Parts Destroyed 1 | . 1 . . . Critical Strikes 1 | . 1 . . . Destroy 1 | . 1 . . . Melee Attacks . | . . . . . Impact . | . . . . . Slashing . | . . . . . Piercing . | . . . . . Sneak Attacks . | . . . . . Combat Hostiles . | . . . . . Follow-up Attacks . | . . . . . Damage Inflicted 1526 | . 1139 240 . 147 Guns 596 | . 348 151 . 97 Cannons 126 | . . 89 . 37 Explosions 790 | . 790 . . . Melee . | . . . . . Ramming 14 | . 1 . . 13 Kinetic 629 | . 255 240 . 134 Thermal 434 | . 434 . . . Explosive 356 | . 356 . . . Electromagnetic 93 | . 93 . . . Impact . | . . . . . Slashing . | . . . . . Piercing . | . . . . . Highest Corruption 6 | . 2 2 2 6 Average Corruption 2 | . 2 2 2 3 Corruption Purged . | . . . . . Corruption Blocked . | . . . . . Effects 34 | . 3 8 7 16 Message Errors 7 | . . 2 2 3 Matter Fused 7 | . 1 1 1 4 Heat Flow Errors 4 | . 1 1 2 . Energy Discharges 4 | . 1 1 . 2 Parts Rejected 1 | . . . . 1 Data Loss (minor) 6 | . . 1 2 3 Data Loss (major) 2 | . . 1 . 1 Misfires 1 | . . . . 1 Alerts 1 | . . . . 1 Weapon Failures 1 | . . 1 . . Overload Shots . | . . . . . Overflow Damage 52 | . 46 6 . . Projectiles 6 | . . 6 . . Explosions 46 | . 46 . . . Melee . | . . . . . Knockbacks 1 | . . 1 . . Impact . | . . . . . Kinetic 1 | . . 1 . . Secondary . | . . . . . Self-Inflicted Damage 67 | . 67 . . . Shots 1 | . 1 . . . Rammed 9 | . 1 . . 8 Targets Rammed 9 | . 1 . . 8 Kicked . | . . . . . Crushed . | . . . . . Highest Temperature 230 | . 219 168 230 40 Average Temperature 56 | . 73 43 102 12 Received Heat Transfer 244 | . 150 40 . 54 Siege Activations . | . . . . . Robots Corrupted . | . . . . . Combat Hostiles . | . . . . . Parts Fried . | . . . . . Impact Corruptions . | . . . . . Robots Melted . | . . . . . Combat Hostiles . | . . . . . Parts Melted . | . . . . . Heat Transferred 300 | . 300 . . . Parts Sabotaged . | . . . . . Parts Stolen . | . . . . . Parts Stripped . | . . . . . Power Chain Reactions 1 | . 1 . . . Alert | -11 -10 -10 -10 -9 ------- Run | Yrd Mat Min Exi Min Peak Influence 325 | . 325 115 . 60 Initial 45 | . . 45 . . Average 93 | . 178 82 . 29 Maximum Alert Level 1 | . 1 . . . Low Security (%) 92 | 100 76 100 . 100 Level 1 7 | . 23 . . . Level 2 . | . . . . . Level 3 . | . . . . . Level 4 . | . . . . . Level 5 . | . . . . . High Security . | . . . . . Max Security . | . . . . . Squads Dispatched 3 | . 2 . . 1 Investigation 1 | . 1 . . . Extermination . | . . . . . Reinforcement 2 | . 1 . . 1 Assault . | . . . . . Garrison . | . . . . . Intercept . | . . . . . Searches Triggered . | . . . . . Construction Impeded 1 | . . . . 1 Haulers Reinforced . | . . . . . Active Scanning Responses . | . . . . . Cargo Convoy Interrupts . | . . . . . Stealth | -11 -10 -10 -10 -9 --------- Run | Yrd Mat Min Exi Min Distress Signals . | . . . . . Communications Jammed . | . . . . . Distress Signals . | . . . . . Times Spotted 35 | . 14 10 . 11 Peak Tracking Total 4 | . 3 3 . 4 Tactical Retreats 4 | . 1 2 . 1 Traps | -11 -10 -10 -10 -9 ------- Run | Yrd Mat Min Exi Min Traps Triggered 2 | . 2 . . . Indirectly . | . . . . . Trap Hack Attempts . | . . . . . Triggered . | . . . . . Disarmed . | . . . . . Reprogrammed . | . . . . . Reused . | . . . . . Traps Extracted . | . . . . . Installed . | . . . . . Triggered . | . . . . . Machines | -11 -10 -10 -10 -9 ---------- Run | Yrd Mat Min Exi Min Machines Disabled 4 | . 4 . . . Max in Single Turn 3 | . 3 . . . Machines Repaired . | . . . . . Machines Dismantled . | . . . . . Machines Sabotaged . | . . . . . Overloaded Fab Kills . | . . . . . Hacking | -11 -10 -10 -10 -9 --------- Run | Yrd Mat Min Exi Min Machines Accessed 6 | . 5 . 1 . Terminals 5 | . 5 . . . Fabricators . | . . . . . Repair Stations . | . . . . . Recycling Units . | . . . . . Scanalyzers . | . . . . . Garrison Access . | . . . . . Total Hacks 13 | . 12 . 1 . Successful 8 | . 7 . 1 . Failed 5 | . 5 . . . Catastrophic 1 | . 1 . . . Database Lockouts . | . . . . . Manual 11 | . 10 . 1 . Terminals 12 | . 12 . . . Fabricators . | . . . . . Repair Stations . | . . . . . Recycling Units . | . . . . . Scanalyzers . | . . . . . Garrison Access . | . . . . . Terminal Hacks 4 | . 3 . 1 . Robot Analysis 1 | . 1 . . . Registered Components 2 | . 2 . . . Derelict Proto ID Bank 1 | . . . 1 . Fabricator Hacks . | . . . . . Repair Station Hacks . | . . . . . Recycling Unit Hacks . | . . . . . Scanalyzer . | . . . . . Garrison Access Hacks . | . . . . . Unauthorized Hacks 4 | . 4 . . . Terminals 4 | . 4 . . . Botnet 4 | . 4 . . . Fabricators . | . . . . . Repair Stations . | . . . . . Recycling Units . | . . . . . Scanalyzers . | . . . . . Garrison Access . | . . . . . Data Cores Recovered . | . . . . . Used . | . . . . . Hacking Detections 5 | . 5 . . . Full Trace Events . | . . . . . Feedback Events . | . . . . . Feedback Blocked . | . . . . . Robot Schematics Acquired . | . . . . . Robots Built . | . . . . . Authchips . | . . . . . Time . | . . . . . Total Robot Build Rating . | . . . . . Part Schematics Acquired . | . . . . . Parts Built . | . . . . . Authchips . | . . . . . Time . | . . . . . Total Part Build Rating . | . . . . . Parts Repaired . | . . . . . Time . | . . . . . Parts Recycled . | . . . . . Recycled Matter . | . . . . . Retrieved Matter . | . . . . . Retrieved Components . | . . . . . Parts Scanalyzed . | . . . . . Part Schematics Acquired . | . . . . . Parts Damaged . | . . . . . Bothacking | -11 -10 -10 -10 -9 ------------ Run | Yrd Mat Min Exi Min Used RIF Installer . | . . . . . Robots Hacked . | . . . . . Non-combat . | . . . . . Combat . | . . . . . Robot Hacks Applied . | . . . . . Relay Couplers Released . | . . . . . Fabnet Peak Effective % . | . . . . . Robots Rewired . | . . . . . Allies Hacked . | . . . . . Hacks Repelled . | . . . . . Allies | -11 -10 -10 -10 -9 -------- Run | Yrd Mat Min Exi Min Total Allies 3 | . . 3 . . Largest Group 3 | . . 3 . . Highest-Rated Group 40 | . . 40 . . Highest-Rated Ally 16 | . . 16 . . Total Orders . | . . . . . Ally Attacks 27 | . . 27 . . Total Damage 256 | . . 256 . . Kills 4 | . . 4 . . Allies Corrupted . | . . . . . Allies Melted . | . . . . . Intel | -11 -10 -10 -10 -9 ------- Run | Yrd Mat Min Exi Min Robot Analysis Total 1 | . 1 . . . Derelict Logs Recovered 2 | . . 1 . 1 Drone Launches . | . . . . . Drone Recoveries . | . . . . . Exploration | -11 -10 -10 -10 -9 ------------- Run | Yrd Mat Min Exi Min Turns Passed 2932 | 11 834 727 394 966 Spaces Moved 1671 | 7 463 410 246 545 Core . | . . . . . Treads 1667 | 3 463 410 246 545 Legs 4 | 4 . . . . Wheels . | . . . . . Hover . | . . . . . Flight . | . . . . . Fastest Speed 120 | 120 160 160 160 160 Average Speed 159 | 137 160 160 160 160 Slowest Speed 160 | 160 160 160 160 160 Overloaded Moves . | . . . . . Propulsion Burnouts . | . . . . . Robots Hopped . | . . . . . Cave-ins Triggered . | . . . . . Exploration Rate (%) 56 | 2 75 68 62 75 Regions Visited 4 Branch Regions 3 Pre-discovered Areas . | . . . . . Known Exits Taken 1 | . 1 . . . Unknown Exits Taken 3 | 1 . 1 1 . Scrap Searched 1 | . . . . 1 Spaces Dug 1 | . . . . 1 Terrain Destroyed 53 | . 52 . . 1 Melee . | . . . . . Projectile 1 | . . . . 1 AOE 52 | . 52 . . . Terrain Rammed . | . . . . . Walls Destroyed . | . . . . . Machines Disabled . | . . . . . Actions | -11 -10 -10 -10 -9 --------- Run | Yrd Mat Min Exi Min Total 1825 | 10 516 455 247 597 Wait 22 | . . 12 . 10 Move 1667 | 6 462 409 245 545 Hop . | . . . . . Pick Up 13 | . 6 5 1 1 Fast Attach 3 | . 2 . . 1 Attach 7 | 2 1 . . 4 Detach 3 | 2 1 . . . Swap 8 | . 3 2 . 3 Drop 13 | . 6 4 1 2 Fire 80 | . 34 23 . 23 Melee . | . . . . . Ram . | . . . . . Kick . | . . . . . Crush 9 | . 1 . . 8 Escape Stasis . | . . . . . Rewire . | . . . . . Trap . | . . . . . Miscellaneous . | . . . . . Route ------- -11/Scrapyard -10/Materials (discovered 3 exits: *Mat / *Min x2) -10/Mines (discovered 2 exits: *Mat / *Exi) -10/Exiles -9/Mines History --------- Turn | Location | Event 1 | -11/Scrapyard | Discovered new exit (range 3) 12 | -11/Scrapyard | Entered Materials 274 | -10/Materials | Discovered new exit (range 8) 306 | -10/Materials | Build established: Mutant 399 | -10/Materials | Discovered new exit (range 14) 404 | -10/Materials | Identified exit to Mines 556 | -10/Materials | Discovered new exit (range 14) 590 | -10/Materials | Identified exit to Materials 846 | -10/Materials | Entered Mines 875 | -10/Mines | Core integrity fell below 50% 974 | -10/Mines | Found a damaged Exp. Sensor Array with a note attached 1283 | -10/Mines | Assisted by bots powering up and referring to "LRC-V3" 1302 | -10/Mines | Learned 2 Materials zone layouts 1356 | -10/Mines | Discovered exit to Materials (range 11) 1432 | -10/Mines | Assembled infested the area 1565 | -10/Mines | Deemed a non-threat by the Exiles lab entrance 1567 | -10/Mines | Discovered new exit (range 5) 1573 | -10/Mines | Entered Exiles 1613 | -10/Exiles | Met 8R-AWN 1639 | -10/Exiles | Met EX-HEX 1684 | -10/Exiles | Met EX-BIN 1706 | -10/Exiles | Aligned with FarCom system 1708 | -10/Exiles | Given EX-Vault access code 1753 | -10/Exiles | Opened EX-Vault 1772 | -10/Exiles | Found Gui. Plasma Cannon 1810 | -10/Exiles | Warned to stay clear of 0b10 Research branches 1890 | -10/Exiles | Met EX-DEC 1948 | -10/Exiles | Discovered new exit (range 14) 1967 | -10/Exiles | Left Exiles lab with Gui. Plasma Cannon 1967 | -10/Exiles | Entered Mines 1970 | -9/Mines | Met a Derelict bent on vengeance 2357 | -9/Mines | Excavation squad dispatched 2357 | -9/Mines | A large section of the Mines collapsed 2607 | -9/Mines | Excavation squad dispatched 2692 | -9/Mines | Core integrity fell below 20% 2857 | -9/Mines | Excavation squad dispatched 2933 | -9/Mines | Destroyed by G-34 Mercenary with Small Laser Last Messages --------------- Acquired Lgt. Treads. System corrupted: Component data lost. K-01 Serf collects debris. Searching scrap... Found Huge Storage Unit. Found Sensor Array. Found Trap Extractor. Found 56 Matter. Acquired 56 matter. K-01 Serf cleans the Core Extractor. System corrupted: Matter fused (-8). ALERT: Derelict activity in mines confirmed. Dispatching additional escorted excavation squad. Acquired 52 matter. Propulsion Shielding destroyed. System corrupted: Matter fused (-6). System corrupted: Matter fused (-5). Lgt. Ion Engine destroyed. K-01 Serf cleans the Core Extractor. Map ----- +----------------------------------------------------+ | | | | | | | | | | | | | | | | | | | | | ?????????????????????????????????????????????????? | | ?????????????????????????????????????????????????? | | ?????????????????????????????????????????????????? | | ???????????????????????????????????????######????? | | ????????????######????#####?####??????## ##???? | | ???????????########?#############????##! ##### | | ???????????### ####### ######## | | ?????######## #### #### !! #### | | ?????# g ## """ ### ### #### | | ?????# ug g """ ### ##### | | ?????# ## #### """k ##??#= ##### | | ?????# ## #?### ##??# ####???? | | ?????# ## #??#### ####???# #??????? | | ##???# ## #???#### #########*######?? | | ##### ## ######## ## [%= #?? | | ## ## @ ### ######## #?? | | + ############ ###??""" ######## #?? | | + #??????###### ####??"""% #?? | | ## #?????????#### ####???""" ######## #?? | | ###### ##?????????##### ####???????????????# #?? | | ????# ##?????????#########????????????????# #?? | | ????# ##########??######?????????????????# #?? | | ????# #?????????????????????????# #?? | | ????# g #???????####??????????????# #?? | | ????# ### #####??## ##?????????????# #?? | | ????## ### ##?# ## #### #?????????????# #?? | | ?????## #?##%#??# s ## #?????????????# #?? | | ###???# #??# #??# #??????????????# #?? | | ##### #### #??#### # ##??????????????# #?? | | #?????# ## #???????????????# #?? | | # ###### ##?????## ### #???????????????# #?? | | ## #????? ?????########## #???????####????# #?? | | ## #????# ????## ##?## #??????## ##???# #?? | | %### #???? ????# ### #?????## #???# #?? | | ##?# #???? ????# #????## #???# #?? | | ???# #???? ????## """" ##???# ##??# #?? | | ???# #???? ?????## """" #???# #### #?? | | ???# ??? ?"??????# """" #???# ##? | | ???? #????????????# #???# ## | | ???? ?????????????# ##???## # | +----------------------------------------------------+ Best States ------------- Heat Dissipation 25 Energy Generation 10 Energy Capacity 250 Matter Stores 300 Matter Capacity 300 Sight Range 16 Terrain Scan Density 10 Armor Coverage 150 Propulsion Shielding 33 Evasion (%) 40 Recoil Reduction 2 Item Schematics ----------------- None Robot Schematics ------------------ None Fabricated ------------ Nothing Alien Tech Used ----------------- None Achievements -------------- None Challenges ------------ None Game ------ Seed ScrapoidElectronCutter Manual? 0 Play Time 00:17:49 Cumulative 49.2 hours Start 2024.11.20 @ 20:31:46 End 2024.11.20 @ 20:46:00 Sessions 1 Manual Loads 0 Difficulty Rogue Special Mode None Game No. 60 Rogue 16 Adventurer 44 Explorer 0 Win Type - Total 0 Types 0/0/0/0/0/0/0/0/0 Lore% 18 Gallery% 42 Achievement% 30 Wizard Run 0 Options --------- Layout 1 ASCII 0 Keyboard 1 Movement Vi Keybinds 0 Fullscreen 1 Font 24/Terminus Map View 50x40 Zoom Use 0% Tactical HUD 0 Map Filters NONE Filters NONE Steam 1 RUN: 1ad885ea-99e4-4cd6-8e16-e0182b9b3143